Cogmind - Beta 11 @@@ ROGUE MODE // 2022.04.14 @ 23:45:50 Player: Rainynight Result: Destroyed by G-34 Mercenary with Small Laser Performance ------------- Evolutions (1) 500 Regions Visited (4) 800 Robots Destroyed (0) 0 Value Destroyed (0) 0 Prototype IDs (0) 0 Alien Tech Used (0) 0 Bonus (200) 200 TOTAL SCORE: 1500 Bonus ------- Pacifist 200 Cogmind --------- Core Integrity 0/400 Matter 223/300 Energy 99/100 System Corruption 0% Temperature Cool (6) Movement Core (100) Ox1 Location -9/Mines Parts ------- > --- POWER (1) -------- (None) > --- PROPULSION (4) --- (None) > --- UTILITY (2) ------ Small Storage Unit > --- WEAPON (2) ------- (None) > --- INVENTORY (8) ---- Wheel Compact Wheel Maul Maul Maul Peak State ------------ > --- POWER ------------ Light Ion Engine > --- PROPULSION ------- Improved Hover Unit Improved Hover Unit Improved Hover Unit Improved Hover Unit > --- UTILITY ---------- Small Storage Unit > --- WEAPON ----------- Maul > --- INVENTORY -------- Light Ion Engine Wheel Compact Wheel EM Pulse Gun Maul Maul [Rating: 12] Favorites ----------- Power Light Ion Engine Engine Light Ion Engine Propulsion Improved Hover Unit Leg Aluminum Leg Wheel Compact Wheel Hover Unit Improved Hover Unit Utility Small Storage Unit Storage Small Storage Unit Weapon Maul Energy Gun EM Pulse Gun Impact Weapon Maul Slashing Weapon Mining Claw Build | -11 -10 -10 -9 -9 ------- Run | Scr Mat Min Mat Min Slots Evolved 2 | . . . 2 . Power . | . . . . . Propulsion 2 | . . . 2 . Utility . | . . . . . Weapon . | . . . . . Parts Attached 12 | . 6 1 2 3 Power 2 | . . 1 . 1 Engine 2 | . . 1 . 1 Core . | . . . . . Reactor . | . . . . . Propulsion 6 | . 4 . 2 . Treads . | . . . . . Leg . | . . . . . Wheel 2 | . 2 . . . Hover 4 | . 2 . 2 . Flight . | . . . . . Utility . | . . . . . Device . | . . . . . Storage . | . . . . . Processor . | . . . . . Hackware . | . . . . . Protection . | . . . . . Artifact . | . . . . . Weapon 4 | . 2 . . 2 Energy Gun 1 | . . . . 1 Energy Cannon . | . . . . . Ballistic Gun . | . . . . . Ballistic Cannon . | . . . . . Launcher . | . . . . . Special Weapon . | . . . . . Impact Weapon 2 | . 2 . . . Slashing Weapon 1 | . . . . 1 Piercing Weapon . | . . . . . Special Melee Weapon . | . . . . . Unidentified Prototypes . | . . . . . Parts Lost 9 | . . 1 1 7 Power 3 | . . 1 1 1 Propulsion 4 | . . . . 4 Utility . | . . . . . Weapon 2 | . . . . 2 Highest Loss Streak 7 | . . 1 1 7 To Critical Strikes . | . . . . . Average Slot Usage (%) 69 | . 74 71 77 58 Engine 10 | . 14 14 11 5 Leg 1 | . 5 . . . Wheel 2 | . 7 . . . Hover 27 | . 15 28 44 25 Storage 12 | . 14 14 11 11 Energy Gun 4 | . 6 . . 7 Impact Weapon 7 | . 11 14 11 . Slashing Weapon 3 | . . . . 8 Naked Turns . | . . . . . Heaviest Build 16 | 14 16 13 11 12 Greatest Support 28 | 20 26 14 28 28 Greatest Overweight (x) 2 | . . . . 2 Average Overweight (x) . | . . . . . Largest Inventory Capacity 8 | . 8 8 8 8 Average Capacity 8 | . 8 8 8 8 Most Carried 8 | . 8 8 7 6 Average Carried 6 | . 6 8 6 5 Final Capacity 8 | 8 8 8 8 8 Final Carried 8 | 6 8 8 7 5 Class Distribution -------------------- 100% | Mutant Dominant Class ---------------- Mutant | -10/Materials Mutant | -10/Mines Mutant | -9/Materials Mutant | -9/Mines Resources | -11 -10 -10 -9 -9 ----------- Run | Scr Mat Min Mat Min Matter Collected 194 | 194 . . . . Remotely . | . . . . . Salvage Created . | . . . . . Parts . | . . . . . Haulers Intercepted . | . . . . . Recyclers Shooed . | . . . . . Parts Field Recycled . | . . . . . Retrieved Matter . | . . . . . Parts Self-Destructed . | . . . . . Prevented . | . . . . . Kills | -11 -10 -10 -9 -9 ------- Run | Scr Mat Min Mat Min Combat Hostiles Destroyed . | . . . . . Classes Destroyed . | . . . . . Best Kill Streak . | . . . . . Combat Bots Only . | . . . . . Max Kills in Single Turn . | . . . . . Gunslinging . | . . . . . Exploded . | . . . . . Melee . | . . . . . Uniques/NPCs Destroyed . | . . . . . Combat | -11 -10 -10 -9 -9 -------- Run | Scr Mat Min Mat Min Damage Taken 959 | . 11 201 100 647 Core 495 | . 11 78 46 360 Absorbed by Shields . | . . . . . Core Remaining (%) 82 | 100 . 64 . . Volleys Fired . | . . . . . Largest . | . . . . . Hottest . | . . . . . Shots Fired . | . . . . . Gun . | . . . . . Cannon . | . . . . . Launcher . | . . . . . Special . | . . . . . Kinetic . | . . . . . Thermal . | . . . . . Explosive . | . . . . . Electromagnetic . | . . . . . Robot Hit Streak . | . . . . . Robot Miss Streak . | . . . . . Penetration Max . | . . . . . Secondary Targets . | . . . . . Shots Hit Robots . | . . . . . Core Hits . | . . . . . Critical Kills . | . . . . . Critical Parts Destroyed . | . . . . . Critical Strikes . | . . . . . Melee Attacks 11 | . . 1 3 7 Impact 4 | . . 1 3 . Slashing 7 | . . . . 7 Piercing . | . . . . . Sneak Attacks . | . . . . . Combat Hostiles . | . . . . . Follow-up Attacks . | . . . . . Damage Inflicted . | . . . . . Guns . | . . . . . Cannons . | . . . . . Explosions . | . . . . . Melee . | . . . . . Ramming . | . . . . . Kinetic . | . . . . . Thermal . | . . . . . Explosive . | . . . . . Electromagnetic . | . . . . . Impact . | . . . . . Slashing . | . . . . . Piercing . | . . . . . Highest Corruption . | . . . . . Average Corruption . | . . . . . Corruption Purged . | . . . . . Corruption Blocked . | . . . . . Overload Shots . | . . . . . Overflow Damage . | . . . . . Projectiles . | . . . . . Explosions . | . . . . . Melee . | . . . . . Knockbacks . | . . . . . Impact . | . . . . . Kinetic . | . . . . . Secondary . | . . . . . Self-Inflicted Damage . | . . . . . Shots . | . . . . . Rammed 1 | . . . . 1 Targets Rammed 1 | . . . . 1 Kicked . | . . . . . Crushed . | . . . . . Highest Temperature 1 | . . . . 1 Average Temperature 1 | . . . . 1 Received Heat Transfer 189 | . 6 . 42 141 Siege Activations . | . . . . . Robots Corrupted . | . . . . . Combat Hostiles . | . . . . . Parts Fried . | . . . . . Impact Corruptions . | . . . . . Robots Melted . | . . . . . Combat Hostiles . | . . . . . Parts Melted . | . . . . . Heat Transferred . | . . . . . Parts Sabotaged . | . . . . . Parts Stolen . | . . . . . Parts Stripped . | . . . . . Power Chain Reactions . | . . . . . Missiles Intercepted . | . . . . . Alert | -11 -10 -10 -9 -9 ------- Run | Scr Mat Min Mat Min Peak Influence 119 | . 30 44 119 75 Initial 42 | . . 11 13 42 Average 39 | . 7 23 82 37 Maximum Alert Level . | . . . . . Low Security (%) 100 | . 100 100 100 100 Level 1 . | . . . . . Level 2 . | . . . . . Level 3 . | . . . . . Level 4 . | . . . . . Level 5 . | . . . . . High Security . | . . . . . Max Security . | . . . . . Squads Dispatched 2 | . . . 2 . Investigation . | . . . . . Extermination . | . . . . . Reinforcement 2 | . . . 2 . Assault . | . . . . . Garrison . | . . . . . Intercept . | . . . . . Searches Triggered . | . . . . . Construction Impeded . | . . . . . Haulers Reinforced . | . . . . . Active Scanning Responses . | . . . . . Cargo Convoy Interrupts . | . . . . . Stealth | -11 -10 -10 -9 -9 --------- Run | Scr Mat Min Mat Min Distress Signals 1 | . 1 . . . Communications Jammed . | . . . . . Distress Signals . | . . . . . Times Spotted 33 | . 4 7 9 13 Peak Tracking Total 11 | . 4 5 6 11 Tactical Retreats 4 | . . 1 1 2 Traps | -11 -10 -10 -9 -9 ------- Run | Scr Mat Min Mat Min Traps Triggered . | . . . . . Indirectly . | . . . . . Trap Hack Attempts . | . . . . . Triggered . | . . . . . Disarmed . | . . . . . Reprogrammed . | . . . . . Reused . | . . . . . Traps Extracted . | . . . . . Installed . | . . . . . Triggered . | . . . . . Machines | -11 -10 -10 -9 -9 ---------- Run | Scr Mat Min Mat Min Machines Disabled . | . . . . . Max in Single Turn . | . . . . . Machines Sabotaged . | . . . . . Garrisons Compromised . | . . . . . Overloaded Fab Kills . | . . . . . Hacking | -11 -10 -10 -9 -9 --------- Run | Scr Mat Min Mat Min Machines Accessed 3 | . 2 . 1 . Terminals 3 | . 2 . 1 . Fabricators . | . . . . . Repair Stations . | . . . . . Recycling Units . | . . . . . Scanalyzers . | . . . . . Garrison Access . | . . . . . Total Hacks 5 | . 3 . 2 . Successful 1 | . . . 1 . Failed 4 | . 3 . 1 . Catastrophic 1 | . 1 . . . Database Lockouts . | . . . . . Manual 3 | . 3 . . . Terminals 5 | . 3 . 2 . Fabricators . | . . . . . Repair Stations . | . . . . . Recycling Units . | . . . . . Scanalyzers . | . . . . . Garrison Access . | . . . . . Terminal Hacks 1 | . . . 1 . Branch Access Points 1 | . . . 1 . Fabricator Hacks . | . . . . . Repair Station Hacks . | . . . . . Recycling Unit Hacks . | . . . . . Scanalyzer . | . . . . . Garrison Access Hacks . | . . . . . Unauthorized Hacks . | . . . . . Terminals . | . . . . . Fabricators . | . . . . . Repair Stations . | . . . . . Recycling Units . | . . . . . Scanalyzers . | . . . . . Garrison Access . | . . . . . Data Cores Recovered . | . . . . . Used . | . . . . . Hacking Detections 2 | . 1 . 1 . Full Trace Events . | . . . . . Feedback Events . | . . . . . Feedback Blocked . | . . . . . Robot Schematics Acquired . | . . . . . Robots Built . | . . . . . Authchips . | . . . . . Time . | . . . . . Total Robot Build Rating . | . . . . . Part Schematics Acquired . | . . . . . Parts Built . | . . . . . Authchips . | . . . . . Time . | . . . . . Total Part Build Rating . | . . . . . Parts Repaired . | . . . . . Time . | . . . . . Parts Recycled . | . . . . . Recycled Matter . | . . . . . Retrieved Matter . | . . . . . Retrieved Components . | . . . . . Parts Scanalyzed . | . . . . . Part Schematics Acquired . | . . . . . Parts Damaged . | . . . . . Bothacking | -11 -10 -10 -9 -9 ------------ Run | Scr Mat Min Mat Min Used RIF Installer . | . . . . . Robots Hacked . | . . . . . Non-combat . | . . . . . Combat . | . . . . . Robot Hacks Applied . | . . . . . Relay Couplers Released . | . . . . . Fabnet Peak Effective % . | . . . . . Robots Rewired . | . . . . . Allies Hacked . | . . . . . Hacks Repelled . | . . . . . Allies | -11 -10 -10 -9 -9 -------- Run | Scr Mat Min Mat Min Total Allies . | . . . . . Largest Group . | . . . . . Highest-Rated Group . | . . . . . Highest-Rated Ally . | . . . . . Total Orders . | . . . . . Ally Attacks . | . . . . . Total Damage . | . . . . . Kills . | . . . . . Allies Corrupted . | . . . . . Allies Melted . | . . . . . Intel | -11 -10 -10 -9 -9 ------- Run | Scr Mat Min Mat Min Robot Analysis Total . | . . . . . Derelict Logs Recovered 2 | . . . . 2 Drone Launches . | . . . . . Drone Recoveries . | . . . . . Exploration | -11 -10 -10 -9 -9 ------------- Run | Scr Mat Min Mat Min Turns Passed 423 | . 110 59 107 147 Spaces Moved 617 | 1 129 98 197 192 Core 41 | . . . . 41 Treads . | . . . . . Legs 19 | 1 18 . . . Wheels 12 | . 12 . . . Hover 545 | . 99 98 197 151 Flight . | . . . . . Fastest Speed 48 | 120 56 56 48 48 Average Speed 58 | 120 68 56 48 62 Slowest Speed 150 | 120 120 56 48 150 Overloaded Moves . | . . . . . Propulsion Burnouts . | . . . . . Robots Hopped . | . . . . . Cave-ins Triggered . | . . . . . Exploration Rate (%) 25 | 2 33 29 23 42 Regions Visited 4 Branch Regions 2 Pre-discovered Areas 1 | . . . . 1 Known Exits Taken 1 | . . . 1 . Unknown Exits Taken 3 | 1 1 1 . . Scrap Searched . | . . . . . Spaces Dug 8 | . . 1 3 4 Terrain Destroyed 8 | . . 1 3 4 Melee 8 | . . 1 3 4 Projectile . | . . . . . AOE . | . . . . . Terrain Rammed . | . . . . . Walls Destroyed . | . . . . . Machines Disabled . | . . . . . Actions | -11 -10 -10 -9 -9 --------- Run | Scr Mat Min Mat Min Total 658 | . 153 99 202 204 Wait 1 | . . . . 1 Move 613 | . 128 97 196 192 Hop . | . . . . . Pick Up 9 | . 8 . 1 . Fast Attach 3 | . 2 1 . . Attach 4 | . . . 2 2 Detach 2 | . 2 . . . Swap 5 | . 4 . . 1 Drop 9 | . 9 . . . Fire . | . . . . . Melee 11 | . . 1 3 7 Ram 1 | . . . . 1 Kick . | . . . . . Crush . | . . . . . Escape Stasis . | . . . . . Rewire . | . . . . . Trap . | . . . . . Miscellaneous . | . . . . . Route ------- -11/Scrapyard -10/Materials -10/Mines -9/Materials (discovered 2 exits: *Min x2) -9/Mines History --------- Turn | Location | Event 1 | -11/Scrapyard | Discovered new exit (range 0) 1 | -11/Scrapyard | Entered Materials 106 | -10/Materials | Discovered new exit (range 10) 111 | -10/Materials | Entered Mines 112 | -10/Mines | Assembled infested the area 163 | -10/Mines | Discovered new exit (range 10) 170 | -10/Mines | Entered Materials 170 | -9/Materials | Evolved 2 slots: Propulsion x2 174 | -9/Materials | Identified exit to Mines 277 | -9/Materials | Entered Mines 303 | -9/Mines | Build established: Mutant 359 | -9/Mines | Learned Materials trap positions 391 | -9/Mines | Core integrity fell below 50% 403 | -9/Mines | Learned location of Storage (-7) 417 | -9/Mines | Core integrity fell below 20% 422 | -9/Mines | Lost 7 parts (1p4n2w) 424 | -9/Mines | Destroyed by G-34 Mercenary with Small Laser Last Messages --------------- LOCATION=MINES GOAL=ESCAPE 00329_ K-01 Serf collects debris. 00338_ Imp. Hover Unit destroyed. 00338_ C-30 ARC bursts open, deploying its payload. 00338_ S-10 Pest unfolds itself. 00359_ Acquired derelict log, extracted data. Data stored: Materials trap records. 00366_ Imp. Hover Unit destroyed. 00366_ Lgt. Ion Engine destroyed. 00373_ EM Pulse Gun destroyed. 00374_ Imp. Hover Unit destroyed. 00377_ Critical hit (Burn: +37). 00378_ Imp. Hover Unit destroyed. 00386_ T-07 Excavator is excavating. 00391_ Mining Claw destroyed. 00394_ T-07 Excavator is excavating. 00403_ Acquired derelict log, extracted data. World map updated: -7/Storage. 00412_ Slammed into S-10 Pest. Map ----- +----------------------------------------------------+ | ?????????????????????????????????????? | | ?????????????????????????????????????? | | ?????????????????????????????????????? | | ?????????????????????????????????????? | | ?????????????????????????????????????? | | ?????????????????????????????????????? | | ?????????????????????????????????????? | | ?????????????????????????????????????? | | ?????????????????????????????????????? | | ?????????????????????????????????????? | | ?????????????????????????????????????? | | ?????????????????????????????????????? | | ?????????????????????????????????????? | | ?????????????????????????????????????? | | ?????????????????????????????????????? | | ?????????????????????????????????????? | | ?????????????????????????????????????? | | ?????????????????????????????????????? | | ?????????????????????????????????????? | | ?????????????????????????????????????? | | ?????????????????????????????????????? | | ????????????####?????????????????????? | | ???????????? #?????????????????????? | | ????????????# #?????????????????????? | | ???????????## #?????????????????????? | | ??????????## @ ###???????????????????? | | ?????????## ##### #?????????????? | | ?????##### #?????????????? | | ????## ??????????? | | ????# ####### ??????????? | | ????# ##???????????????????? | | ????# ##????????????????????? | | ????# s """ ##????????????????????? | | ????## s"""g ##???????????????????? | | ?????####s """ g ##??????????????????? | | ????????## g #??????????????????? | | ?????????## #??? #?????????????? | | ??????????## ##g ##??? #?????????????? | | ???????????# ## ##???? ??????????????? | | ???????????# ## ###### #??????####???? | | ???????????# #?????## ##### | | ???????????###### ### ##????## | | ????????????????# #?# #?????# #### | | ????????????????# ### #????## #??? | | ???????????###### # ##???# #### | | ???????????# #???# | | ???????????## #???## ### | | ????????????# ## #????#### ### | | ????????????#??# ##?####??# | | ???????????????# #### ##?# #### | +----------------------------------------------------+ Best States ------------- Heat Dissipation 28 Energy Generation 10 Energy Capacity 250 Matter Stores 294 Matter Capacity 300 Sight Range 16 Terrain Scan Density 10 Evasion (%) 55 Item Schematics ----------------- None Robot Schematics ------------------ None Fabricated ------------ Nothing Alien Tech Used ----------------- None Achievements -------------- None Challenges ------------ None Game ------ Seed BoreLauncherMembrane Manual? 0 Play Time 00:07:52 Cumulative 79.1 hours Start 2022.04.14 @ 23:39:45 End 2022.04.14 @ 23:45:50 Sessions 1 Manual Loads 0 Difficulty Rogue Special Mode None Game No. 94 Rogue 94 Adventurer 0 Explorer 0 Win Type - Total 1 Types 1/0/0/0/0/0/0/0/0 Lore% 48 Gallery% 53 Achievement% 39 Wizard Run 0 Options --------- ASCII 1 Keyboard 1 Movement Numpad Keybinds 0 Fullscreen 1 Font 18/X11 Map View 76x50 Tactical HUD 1 Map Filters NONE Filters NONE Steam 1 RUN: 38baeed8-b27b-4de0-a9e4-82f199bc6150